Cogmind - Beta 16.1 @@@ ROGUE MODE // 2026.03.30 @ 00:31:40 Player: mephiles96 Result: Destroyed by Y-54 Guardian with Flak Gun Performance ------------- Evolutions (4) 2000 Regions Visited (5) 1000 Robots Destroyed (37) 185 Value Destroyed (1010) 1010 Prototype IDs (0) 0 Alien Tech Used (0) 0 Bonus (0) 0 TOTAL SCORE: 4195 Bonus ------- None Cogmind --------- Core Integrity 0/850 Matter 67/300 Energy 100/100 System Corruption 11% Temperature Cool (18) Movement Core (700) Ox13 Location -6/Factory Parts ------- > --- POWER (2) -------- (None) > --- PROPULSION (3) --- (None) > --- UTILITY (8) ------ High-capacity Storage Unit Visual Processing Unit Improved Signal Interpreter Improved Hacking Suite > --- WEAPON (2) ------- Flail > --- INVENTORY (20) --- Light Armored Exoskeleton Wheel High-capacity Matter Pod (200) Advanced Weight Redist. System Trap Scanner Improved Terrain Scanner Advanced Targeting Computer Light Armor Plating Hardened Light Armor Plating EM Disruption Field Improved Trap Extractor (0/6) Assault Rifle Autogun Mini Grenade Launcher Heavy Missile Launcher Improved Datajack Peak State ------------ > --- POWER ------------ Angular Momentum Engine Light Angular Momentum Engine > --- PROPULSION ------- Aluminum Leg Wheel Wheel > --- UTILITY ---------- High-capacity Storage Unit Visual Processing Unit Improved Sensor Array Improved Signal Interpreter Seismic Detector Transmission Jammer ECM Suite Improved Hacking Suite > --- WEAPON ----------- Heavy Flak Cannon Power Maul > --- INVENTORY -------- Angular Momentum Engine Aluminum Leg Light Armored Exoskeleton High-capacity Matter Pod Trap Scanner Improved Terrain Scanner Advanced Targeting Computer Light Armor Plating Hardened Light Armor Plating Reactive Plating EM Disruption Field Improved Trap Extractor Assault Rifle Heavy Assault Rifle Heavy Flak Cannon Mini Grenade Launcher Heavy Missile Launcher Improved Datajack Flail [Rating: 47] Favorites ----------- Power Angular Momentum Engine Engine Angular Momentum Engine Power Core Nuclear Core Propulsion Wheel Treads Light Treads Leg Aluminum Leg Wheel Wheel Utility ECM Suite Device ECM Suite Storage High-capacity Storage Unit Processor Improved Signal Interpreter Hackware Improved Hacking Suite Protection Hardened Light Armor Plating Weapon Heavy Assault Rifle Energy Gun Medium Laser Ballistic Gun Heavy Assault Rifle Ballistic Cannon Heavy Flak Cannon Launcher Heavy Missile Launcher Special Weapon Mining Laser Impact Weapon Power Maul Build | -11 -10 -9 -8 -7 -6 ------- Run | Yrd Mat Mat Mat Fac Fac Slots Evolved 8 | . . 2 2 2 2 Power 1 | . . . . . 1 Propulsion 1 | . . . 1 . . Utility 6 | . . 2 1 2 1 Weapon . | . . . . . . Parts Attached 49 | 7 2 6 10 8 16 Power 8 | 1 . 1 2 . 4 Engine 7 | 1 . 1 1 . 4 Core 1 | . . . 1 . . Reactor . | . . . . . . Propulsion 13 | 2 . 1 3 3 4 Treads 3 | 2 . . 1 . . Leg 4 | . . . 2 1 1 Wheel 6 | . . 1 . 2 3 Hover . | . . . . . . Flight . | . . . . . . Utility 16 | 2 1 3 3 5 2 Device 8 | 1 . 3 1 3 . Storage 3 | 1 1 . . 1 . Processor 2 | . . . 1 1 . Hackware 1 | . . . . . 1 Protection 2 | . . . 1 . 1 Artifact . | . . . . . . Weapon 12 | 2 1 1 2 . 6 Energy Gun 1 | 1 . . . . . Energy Cannon . | . . . . . . Ballistic Gun 5 | 1 1 1 1 . 1 Ballistic Cannon 2 | . . . . . 2 Launcher 1 | . . . . . 1 Special Weapon 1 | . . . 1 . . Impact Weapon 2 | . . . . . 2 Slashing Weapon . | . . . . . . Piercing Weapon . | . . . . . . Special Melee Weapon . | . . . . . . Unidentified Prototypes . | . . . . . . Parts Lost 25 | . . 2 2 . 21 Power 5 | . . 1 . . 4 Propulsion 9 | . . . 1 . 8 Utility 6 | . . 1 . . 5 Weapon 5 | . . . 1 . 4 Highest Loss Streak 10 | . . 2 1 . 10 To Critical Strikes . | . . . . . . Average Backups 15 | 5 8 11 14 17 17 Power . | . 1 1 1 1 . Propulsion 2 | 3 3 3 1 1 2 Utility 7 | . 3 5 7 9 8 Weapon 4 | . 1 2 3 4 5 Tool/Special . | . . . . . . Unused Backups 19 | . 3 . 3 1 12 Power . | . . . . . . Propulsion 2 | . 1 . . . 1 Utility 11 | . 1 . 2 1 7 Weapon 5 | . 1 . 1 . 3 Tool/Special 1 | . . . . . 1 Average Slot Usage (%) 95 | . 99 97 96 99 91 Engine 7 | . 14 10 4 . 9 Core 2 | . . . 4 7 . Treads 7 | . 28 21 9 . . Leg 5 | . . . 12 14 2 Wheel 7 | . . . 3 7 12 Device 26 | . 14 32 19 28 28 Storage 8 | . 14 11 9 7 6 Processor 9 | . . . 8 15 13 Hackware 1 | . . . . . 2 Protection 1 | . . . 7 1 1 Ballistic Gun 13 | . 26 21 15 14 5 Ballistic Cannon 1 | . . . . . 3 Peak Build Rating 47 | 8 8 14 25 35 47 Average Rating 27 | 6 7 12 21 29 39 On Entrance 13 | . 8 8 9 25 30 Avg Prop Armor Cover (%) 10 | . . 17 7 12 6 Naked Turns . | . . . . . . Heaviest Build 92 | 14 29 35 39 57 92 Greatest Support 47 | 40 40 40 40 30 47 Greatest Overweight (x) 15 | 2 . 3 3 5 15 Average Overweight (x) 2 | . . . . 4 2 Largest Inventory Capacity 20 | 8 15 15 15 20 20 Average Capacity 17 | 7 11 15 15 18 20 Most Carried 20 | 8 9 14 15 20 20 Average Carried 15 | 5 8 11 14 17 18 Final Capacity 20 | 8 15 15 15 20 20 Final Carried 20 | 8 9 14 15 20 17 Class Distribution -------------------- 38% | Infiltrator-Skirmisher 23% | Mutant 17% | Skirmisher 13% | Infiltrator-Assassin 5% | Scavenger-Mutant Dominant Class ---------------- Mutant | -10/Materials Mutant | -9/Materials Skirmisher | -8/Materials Infiltrator-Skirmisher | -7/Factory Infiltrator-Skirmisher | -6/Factory Resources | -11 -10 -9 -8 -7 -6 ----------- Run | Yrd Mat Mat Mat Fac Fac Matter Collected 1361 | 286 49 156 350 107 413 Remotely . | . . . . . . Salvage Created 1262 | 157 49 156 473 107 320 Parts 86 | 16 1 15 26 6 22 Haulers Intercepted . | . . . . . . Recyclers Shooed 4 | 1 . . . . 3 Parts Field Recycled . | . . . . . . Retrieved Matter . | . . . . . . Parts Self-Destructed . | . . . . . . Prevented . | . . . . . . Parts Restored . | . . . . . . Kills | -11 -10 -9 -8 -7 -6 ------- Run | Yrd Mat Mat Mat Fac Fac Combat Hostiles Destroyed 23 | . 1 3 8 1 10 Melee 1 | . . . . . 1 Guns 11 | . 1 3 6 1 . Cannons 8 | . . . 2 . 6 AOE 1 | . . . . . 1 Classes Destroyed 11 | 3 1 2 1 2 2 Worker 1 | 1 . . . . . Builder 2 | . . . . . 2 Tunneler 4 | 4 . . . . . Recycler 5 | 1 . . 3 . 1 Mechanic 1 | . . . . 1 . Watcher 1 | . . 1 . . . Swarmer 9 | . . . 4 . 5 Grunt 4 | . 1 1 2 . . Sentry 4 | . . 2 2 . . Hunter 1 | . . . . . 1 Programmer 5 | . . . . 1 4 Best Kill Streak 5 | 3 1 1 5 1 3 Combat Bots Only 5 | . 1 1 5 1 3 Max Kills in Single Turn 1 | 1 1 1 1 1 1 Gunslinging . | . . . . . . Exploded 1 | . . . . . 1 Melee 1 | . . . . . 1 Uniques/NPCs Destroyed . | . . . . . . Combat | -11 -10 -9 -8 -7 -6 -------- Run | Yrd Mat Mat Mat Fac Fac Hostile Shots Fired 425 | . 8 51 34 14 318 Missed 146 | . 3 14 10 5 114 Hits 279 | . 5 37 24 9 204 Melee 4 | . . 4 . . . Projectile 275 | . 5 33 24 9 204 AOE 2 | . . . . . 2 Critical Strikes 6 | . . 3 . 1 2 Damage Taken 3951 | . 59 515 319 139 2919 Core 1007 | . . 79 60 16 852 Absorbed by Shields . | . . . . . . Ignored by Resistances 116 | . . . . . 116 Regen/Repaired (Parts) 26 | . . . 11 15 . Core Remaining (%) 93 | 100 100 80 89 97 . Volleys Fired 117 | 16 6 9 33 11 42 Largest 2 | 2 2 2 2 2 2 Hottest 123 | 70 40 43 120 123 100 Shots Fired 200 | 32 12 18 62 21 55 Gun 164 | 32 12 18 57 18 27 Cannon 26 | . . . . . 26 Launcher 1 | . . . . . 1 Special 9 | . . . 5 3 1 Kinetic 174 | 16 12 18 57 18 53 Thermal 25 | 16 . . 5 3 1 Explosive 1 | . . . . . 1 Electromagnetic . | . . . . . . Robot Hit Streak 11 | 6 4 11 9 11 9 Robot Miss Streak 7 | 4 2 1 5 1 7 Penetration Max . | . . . . . . Secondary Targets . | . . . . . . Shots Hit Robots 144 | 16 8 14 37 12 57 Core Hits 81 | 7 2 10 21 5 36 Critical Kills 2 | . . . 1 . 1 Critical Parts Destroyed 3 | . . . 1 . 2 Critical Strikes 7 | 2 . . 2 . 3 Burn 2 | 2 . . . . . Destroy 2 | . . . 2 . . Smash 3 | . . . . . 3 Melee Attacks 25 | . . . . . 25 Impact 25 | . . . . . 25 Slashing . | . . . . . . Piercing . | . . . . . . Sneak Attacks 2 | . . . . . 2 Combat Hostiles . | . . . . . . Follow-up Attacks . | . . . . . . Damage Inflicted 2547 | 167 91 143 434 195 1517 Guns 1376 | 167 91 142 386 195 395 Cannons 574 | . . . . . 574 Explosions 64 | . . . . . 64 Melee 484 | . . . . . 484 Ramming 1 | . . 1 . . . Kinetic 1836 | 53 91 142 386 195 969 Thermal 162 | 114 . . 48 . . Explosive 64 | . . . . . 64 Electromagnetic . | . . . . . . Impact 484 | . . . . . 484 Slashing . | . . . . . . Piercing . | . . . . . . Highest Corruption 11 | . . . . 1 11 Average Corruption 5 | . . . . 1 6 Corruption Purged . | . . . . . . Corruption Blocked . | . . . . . . Effects 32 | . . . . 2 30 Message Errors 6 | . . . . 1 5 Matter Fused 9 | . . . . . 9 Heat Flow Errors 2 | . . . . 1 1 Energy Discharges 5 | . . . . . 5 Parts Rejected 3 | . . . . . 3 Data Loss (minor) 1 | . . . . . 1 Data Loss (major) 5 | . . . . . 5 Misfires 1 | . . . . . 1 Overload Shots . | . . . . . . Overflow Damage 180 | . . . . . 180 Projectiles . | . . . . . . Explosions . | . . . . . . Melee 180 | . . . . . 180 Knockbacks 14 | . . . . . 14 Impact 1 | . . . . . 1 Kinetic 13 | . . . . . 13 Secondary . | . . . . . . Self-Inflicted Damage 40 | . . . . . 40 Shots 1 | . . . . . 1 Rammed 1 | . . 1 . . . Targets Rammed 1 | . . 1 . . . Kicked . | . . . . . . Crushed . | . . . . . . Highest Temperature 244 | 70 12 26 32 148 244 Average Temperature 25 | 25 8 6 11 80 36 Received Heat Transfer 573 | . 30 213 126 . 204 Siege Activations . | . . . . . . Martial Activations . | . . . . . . Shielding Activations . | . . . . . . Robots Disrupted . | . . . . . . Combat Hostiles . | . . . . . . Robots Corrupted 2 | . . . . . 2 Combat Hostiles 2 | . . . . . 2 Parts Fried 1 | . . . . . 1 Impact Corruptions 7 | . . . . . 7 Robots Melted . | . . . . . . Combat Hostiles . | . . . . . . Parts Melted . | . . . . . . Heat Transferred 581 | 481 . . 100 . . Parts Sabotaged . | . . . . . . Parts Stolen . | . . . . . . Parts Stripped . | . . . . . . Power Chain Reactions . | . . . . . . Alert | -11 -10 -9 -8 -7 -6 ------- Run | Yrd Mat Mat Mat Fac Fac Maximum Alert Level . | . . . . . . Low Security (%) 100 | 100 100 100 100 100 100 Level 1 . | . . . . . . Level 2 . | . . . . . . Level 3 . | . . . . . . Level 4 . | . . . . . . Level 5 . | . . . . . . High Security . | . . . . . . Max Security . | . . . . . . Peak Influence 146 | 10 20 36 146 30 63 Initial 14 | . . . . 14 . Average 14 | 1 . 4 76 2 9 Influence Increases 847 | 30 24 98 308 81 306 Destroy 0b10 Robot/C 460 | . 20 60 160 20 200 Destroy 0b10 Robot/NC 70 | 30 . 5 15 5 15 Destroy Leader 142 | . . 32 30 10 70 Successful Hack 61 | . 4 . 11 46 . Disable Machine 15 | . . . 15 . . Destroy Structure 24 | . . 1 2 . 21 Lose Combat Pursuer 75 | . . . 75 . . Influence Decreases 847 | 30 24 98 275 114 306 Entered New Map 19 | . . . . 19 . Time Decay 660 | 30 24 98 255 95 158 Lost Part 168 | . . . 20 . 148 Squads Dispatched 12 | . . 4 . 1 7 Investigation 2 | . . 1 . . 1 Extermination 4 | . . . . 1 3 Reinforcement 5 | . . 3 . . 2 Assault . | . . . . . . Garrison 1 | . . . . . 1 Intercept . | . . . . . . Searches Triggered . | . . . . . . Construction Impeded 1 | . . . . . 1 Haulers Reinforced . | . . . . . . Active Scanning Responses . | . . . . . . Cargo Convoy Interrupts . | . . . . . . Stealth | -11 -10 -9 -8 -7 -6 --------- Run | Yrd Mat Mat Mat Fac Fac Distress Signals 5 | . . 1 4 . . Communications Jammed . | . . . . . . Distress Signals . | . . . . . . Times Spotted 56 | . 2 20 15 2 17 Peak Tracking Total 8 | . 1 8 7 1 5 Tactical Retreats 7 | . . 4 3 . . ECM-based Alert Blocks 9 | . . 9 . . . Traps | -11 -10 -9 -8 -7 -6 ------- Run | Yrd Mat Mat Mat Fac Fac Traps Triggered 5 | . . 1 . 2 2 Indirectly . | . . . . . . Trap Hack Attempts . | . . . . . . Triggered . | . . . . . . Disarmed . | . . . . . . Reprogrammed . | . . . . . . Reused . | . . . . . . Traps Extracted . | . . . . . . Installed . | . . . . . . Triggered . | . . . . . . Machines | -11 -10 -9 -8 -7 -6 ---------- Run | Yrd Mat Mat Mat Fac Fac Machines Disabled 1 | . . . 1 . . Max in Single Turn 1 | . . . 1 . . Garrison Access 1 | . . . . . 1 Machines Repaired . | . . . . . . Machines Dismantled . | . . . . . . Machines Sabotaged . | . . . . . . Overloaded Fab Kills . | . . . . . . Hacking | -11 -10 -9 -8 -7 -6 --------- Run | Yrd Mat Mat Mat Fac Fac Machines Accessed 13 | . 4 2 2 2 3 Terminals 9 | . 4 1 1 1 2 Fabricators . | . . . . . . Repair Stations 2 | . . . 1 1 . Recycling Units . | . . . . . . Scanalyzers 1 | . . 1 . . . Garrison Access 1 | . . . . . 1 Total Hacks 29 | . 9 4 4 5 7 Successful 11 | . 2 1 4 3 1 Failed 17 | . 7 2 . 2 6 Catastrophic 1 | . 1 . . . . Database Lockouts 1 | . . 1 . . . Manual 17 | . 7 2 2 1 5 Terminals 20 | . 9 2 2 2 5 Fabricators . | . . . . . . Repair Stations 5 | . . . 2 3 . Recycling Units . | . . . . . . Scanalyzers 2 | . . 2 . . . Garrison Access 2 | . . . . . 2 Terminal Hacks . | . . . . . . Fabricator Hacks . | . . . . . . Repair Station Hacks 4 | . . . 2 2 . Scan Component 2 | . . . 1 1 . Repair 2 | . . . 1 1 . Recycling Unit Hacks . | . . . . . . Scanalyzer 1 | . . 1 . . . Retrieve Study 1 | . . 1 . . . Garrison Access Hacks 1 | . . . . . 1 Seal Access 1 | . . . . . 1 Unauthorized Hacks 5 | . 2 . 2 1 . Terminals 5 | . 2 . 2 1 . Assimilate 1 | . . . 1 . . Botnet 4 | . 2 . 1 1 . Fabricators . | . . . . . . Repair Stations . | . . . . . . Recycling Units . | . . . . . . Scanalyzers . | . . . . . . Garrison Access . | . . . . . . Data Cores Recovered . | . . . . . . Used . | . . . . . . Hacking Detections 13 | . 4 2 2 2 3 Full Trace Events 3 | . 2 . . . 1 Feedback Events . | . . . . . . Feedback Blocked . | . . . . . . Robot Schematics Acquired . | . . . . . . Robots Built . | . . . . . . Authchips . | . . . . . . Time . | . . . . . . Total Robot Build Rating . | . . . . . . Part Schematics Acquired . | . . . . . . Parts Built . | . . . . . . Authchips . | . . . . . . Time . | . . . . . . Total Part Build Rating . | . . . . . . Part Studies Acquired 1 | . . 1 . . . Parts Repaired 2 | . . . 1 1 . Time 45 | . . . 26 19 . Parts Recycled . | . . . . . . Recycled Matter . | . . . . . . Retrieved Matter . | . . . . . . Retrieved Components . | . . . . . . Parts Scanalyzed . | . . . . . . Part Schematics Acquired . | . . . . . . Parts Damaged . | . . . . . . Bothacking | -11 -10 -9 -8 -7 -6 ------------ Run | Yrd Mat Mat Mat Fac Fac Used RIF Installer . | . . . . . . Robots Hacked . | . . . . . . Non-combat . | . . . . . . Combat . | . . . . . . Robot Hacks Applied . | . . . . . . Relay Couplers Released . | . . . . . . Fabnet Peak Effective % . | . . . . . . Robots Rewired . | . . . . . . Allies Hacked . | . . . . . . Hacks Repelled . | . . . . . . Allies | -11 -10 -9 -8 -7 -6 -------- Run | Yrd Mat Mat Mat Fac Fac Total Allies . | . . . . . . Largest Group . | . . . . . . Highest-Rated Group . | . . . . . . Highest-Rated Ally . | . . . . . . Total Orders . | . . . . . . Ally Attacks . | . . . . . . Total Damage . | . . . . . . Kills . | . . . . . . Allies Corrupted . | . . . . . . Allies Melted . | . . . . . . Intel | -11 -10 -9 -8 -7 -6 ------- Run | Yrd Mat Mat Mat Fac Fac Active Infowar (turns) 4879 | 133 401 793 564 907 2081 Optics 2988 | . . . . 907 2081 Sensors 3417 | . . . 564 907 1946 Terrain 2655 | . . 792 464 177 1222 Structural 1 | . . 1 . . . Seismic 2797 | 133 401 757 . 2 1504 Jamming 2249 | . . . . 759 1490 ECM 2544 | . . 322 . 733 1489 Robot Analysis Total . | . . . . . . Derelict Logs Recovered . | . . . . . . Drone Launches . | . . . . . . Drone Recoveries . | . . . . . . Exploration | -11 -10 -9 -8 -7 -6 ------------- Run | Yrd Mat Mat Mat Fac Fac Turns Passed 5005 | 230 401 801 585 907 2081 Spaces Moved 2271 | 105 231 307 215 552 861 Core 13 | 7 . . . . 6 Treads 669 | 98 231 263 77 . . Legs 202 | . . . 138 . 64 Wheels 1387 | . . 44 . 552 791 Hover . | . . . . . . Flight . | . . . . . . Fastest Speed 50 | 50 160 110 160 95 110 Average Speed 150 | 154 160 153 189 147 138 Slowest Speed 800 | 160 160 160 330 155 800 Overloaded Moves . | . . . . . . Propulsion Burnouts . | . . . . . . Robots Hopped . | . . . . . . Potential Cave-ins . | . . . . . . Cave-ins Triggered . | . . . . . . Exploration Rate (%) 21 | 4 37 31 25 10 19 Regions Visited 5 Branch Regions . Pre-discovered Areas . | . . . . . . Known Exits Taken 2 | . . . 1 1 . Unknown Exits Taken 3 | 1 1 1 . . . Scrap Searched . | . . . . . . Spaces Dug 8 | . . . 2 . 6 Terrain Destroyed 22 | . . . 2 . 20 Melee 6 | . . . . . 6 Projectile 2 | . . . 2 . . AOE 14 | . . . . . 14 Terrain Rammed . | . . . . . . Walls Destroyed . | . . . . . . Machines Disabled . | . . . . . . Actions | -11 -10 -9 -8 -7 -6 --------- Run | Yrd Mat Mat Mat Fac Fac Total 3603 | 141 255 619 327 614 1647 Wait 1044 | 6 8 291 49 19 671 Move 2266 | 104 230 306 214 551 861 Hop . | . . . . . . Pick Up 50 | 8 4 6 10 10 12 Fast Attach 19 | 7 1 . 4 2 5 Attach 24 | . . 2 5 4 13 Detach 3 | . . . 1 2 . Swap 30 | . 1 4 5 9 11 Drop 24 | . 5 . 6 6 7 Fire 117 | 16 6 9 33 11 42 Melee 25 | . . . . . 25 Ram . | . . . . . . Kick . | . . . . . . Crush 1 | . . 1 . . . Escape Stasis . | . . . . . . Rewire . | . . . . . . Trap . | . . . . . . Miscellaneous . | . . . . . . Route ------- -11/Scrapyard -10/Materials -9/Materials -8/Materials -7/Factory -6/Factory (discovered 1 exit: *Low) History --------- Turn | Location | Event 30 | -11/Scrapyard | Discovered new exit (range 16) 231 | -11/Scrapyard | Entered Materials 330 | -10/Materials | Build established: Mutant 591 | -10/Materials | Discovered new exit (range 16) 632 | -10/Materials | Entered another Materials area 632 | -9/Materials | Evolved 2 slots: Utility x2 1326 | -9/Materials | Central database locked down 1415 | -9/Materials | Discovered new exit (range 16) 1433 | -9/Materials | Entered another Materials area 1433 | -8/Materials | Evolved 2 slots: Propulsion x1, Utility x1 1739 | -8/Materials | Build established: Skirmisher 1953 | -8/Materials | Repaired ECM Suite 1974 | -8/Materials | Discovered new exit (range 3) 2016 | -8/Materials | Identified exit to Factory 2018 | -8/Materials | Entered Factory 2018 | -7/Factory | Evolved 2 slots: Utility x2 2344 | -7/Factory | Repaired Imp. Terrain Scanner 2460 | -7/Factory | Build established: Infiltrator-Skirmisher 2846 | -7/Factory | Discovered new exit (range 3) 2849 | -7/Factory | Identified exit to Factory 2925 | -7/Factory | Entered another Factory area 2925 | -6/Factory | Evolved 2 slots: Power x1, Utility x1 3835 | -6/Factory | Spotted B-75 Beast 4461 | -6/Factory | Lost 7 parts (2p3n1u1w) 4507 | -6/Factory | System corruption reached 10% 4613 | -6/Factory | Build established: Infiltrator-Assassin 4805 | -6/Factory | Discovered new exit (range 17) 4869 | -6/Factory | Identified exit to Lower Caves 4920 | -6/Factory | Garrison activated, responded to threat 4960 | -6/Factory | Core integrity fell below 50% 4998 | -6/Factory | Core integrity fell below 20% 5006 | -6/Factory | Destroyed by Y-54 Guardian with Flak Gun Last Messages --------------- 04939_ K-01 Serf collects debris. 04939_ Hvy. Assault Rifle destroyed. 04940_ S-27 Virus knocked back. 04943_ Imp. Ion Engine+ destroyed. 04943_ K-01 Serf collects debris. 04944_ S-27 Virus knocked back. 04944_ S-27 Virus destroyed. 04950_ System corrupted: Hvy. Flak Cannon rejected. 04950_ Transmission Jammer destroyed. 04953_ K-01 Serf cleans the Pressure Siphon. 04954_ Reactive Plating destroyed. 04965_ System corrupted: Matter fused (-9). 04982_ Power Maul destroyed. 04989_ Titanium Leg destroyed. 04993_ Com. Wheel destroyed. 04996_ ECM Suite destroyed. 04999_ System corrupted: Matter fused (-6). 05002_ Imp. Sensor Array destroyed. 05006_ S-27 Virus destroyed. Map ----- +----------------------------------------------------+ | ???????????????????#######?# #???????????????# #?? | | ???????????????????????????# #???????????????# #?? | | ???????????????????????????# #???????????????# #?? | | ???????????????????????????# #???????????????# #?? | | ???????????????????????????#+#???????????????# #?? | | ?????????????????????????????????????????????# #?? | | ?????????????????????????????????????????????# #?? | | ?????????????????????????????????????????????# #?? | | ?????????????????????????????????????????????# #?? | | ?????????????????????????????????????????????# #?? | | ?????????????????????????????????????????????# #?? | | ???????????????????????????????????????????### ### | | ???????????????????????????????????????????# # | | ???????????????????????????????????????????# # | | ???????????????????????????????????????????# > | | ???????????????????????????????????????????# # | | ???????????????????????????????????????????# # | | ????????????+###################+###???????### ### | | ??????????? #???#######/### | | ??????????? #???# " | | ?????????? #???# """"" | | ?????????? #???# """"" | | ?????????? #???# """ | | ????????????????##########Y### #???# | | ????????????????#= *=%[ # #???# """"" | | ????????????????# """ !@/ s# #???# """"" | | ????????????????# """ !!/ # #???# """ | | ????????????????# """ !/s # #???# | | ????????????????# # #???# | | ????????????????############## #???# | | ?????????????????????????????# #???# | | ?????????????????????????????# ###########+### | | ?????????????????????????????# =% !%%= | | ?????????????????????????????# | | ?????????????????????????????# ] =% | | ?????????????????????????????# ""% """ %"% """ | | ?????????????????????????????# """ """ """ """ | | ?????????????????????????????#!! """ """ """ """ | | ?????????????????????????????#!! | | ???????????????????????????? """ """ """ """ | | ?????????????????????????? """ """ """ """ | | ?????????????????????????? """ """ """ """ | | ?????????????????????????" ? | | ?????????????????????????" ?? | | ????????????????????????"" ####### ? ? | | ????????????????????????"" ???????? ?? | | ????????????????????????? ???????? ??? | | ????????????????????????? ????????"" ""??? | | ??????????????????????????? ????????"??"???? | | ?????????????????????????????? ???????????G??????? | +----------------------------------------------------+ Best States ------------- Heat Dissipation 37 Energy Generation 31 Energy Capacity 500 Matter Stores 300 Matter Capacity 300 Sight Range 18 Robot Scan Range 15 Terrain Scan Range 16 Terrain Scan Density 10 ECM Strength 1 Jamming Range 12 Armor Coverage 150 Resistance: KI 20 Evasion (%) 41 Recoil Reduction 2 Offensive Hacking 12 Item Schematics ----------------- None Robot Schematics ------------------ None Fabricated ------------ Nothing Repaired ---------- ECM Suite | 45% | -8/Materials Imp. Terrain Scanner | 31% | -7/Factory Studied --------- Imp. Ion Engine | -9/Materials | Hacked Alien Tech Used ----------------- None Achievements -------------- No Signal Challenges ------------ None Game ------ Seed MultinovaMiniJetlance Manual? 0 Play Time 00:41:50 Cumulative 36.5 hours Start 2026.03.29 @ 23:51:11 End 2026.03.30 @ 00:31:40 Sessions 1 Manual Loads 0 Difficulty Rogue Special Mode None Game No. 44 Rogue 44 Adventurer 0 Explorer 0 Win Type - Total 0 Types 0/0/0/0/0/0/0/0/0/0 Lore% 15 Gallery% 30 Achievement% 22 Wizard Run 0 Options --------- Layout 2 ASCII 0 Keyboard 0 Movement Numpad Keybinds 1 Fullscreen 1 Font 24/Smallcaps Map View 50x44 Zoom Use 0% Tactical HUD 1 Map Filters NONE Filters NONE Steam 1 RUN: 3c50b1b7-6097-452b-9844-6f7888902e37